Cogmind - Beta 12 @@@ ROGUE MODE // 2024.02.28 @ 13:50:47 Player: lnly rvr shp Result: Destroyed by as-21945 with Assembled Rifle Performance ------------- Evolutions (0) 0 Regions Visited (2) 400 Robots Destroyed (31) 155 Value Destroyed (829) 829 Prototype IDs (2) 40 Alien Tech Used (0) 0 Bonus (0) 0 TOTAL SCORE: 1424 Bonus ------- None Cogmind --------- Core Integrity 0/250 Matter 255/300 Energy 47/250 System Corruption 0% Temperature Warm (163) Movement Treading (240) Ox1 Location -10/Mines Parts ------- > --- POWER (1) -------- Ion Engine > --- PROPULSION (2) --- Light Treads Light Treads > --- UTILITY (2) ------ High-capacity Storage Unit > --- WEAPON (2) ------- Beam Rifle Light Assault Rifle > --- INVENTORY (20) --- Light Treads Light Treads Heat Sink Sensor Array Light Armor Plating Beam Rifle Beam Rifle Beam Rifle Light Assault Rifle Rocket Launcher Rocket Launcher Peak State ------------ > --- POWER ------------ Ion Engine > --- PROPULSION ------- Light Treads Light Treads > --- UTILITY ---------- High-capacity Storage Unit > --- WEAPON ----------- Beam Rifle Beam Rifle > --- INVENTORY -------- Light Treads Light Treads Heat Sink Sensor Array Light Armor Plating Beam Rifle Beam Rifle Light Assault Rifle Light Assault Rifle Rocket Launcher Rocket Launcher [Rating: 9] Favorites ----------- Power Light Ion Engine Engine Light Ion Engine Propulsion Light Treads Treads Light Treads Utility High-capacity Storage Unit Storage High-capacity Storage Unit Weapon Light Assault Rifle Energy Gun Medium Laser Ballistic Gun Light Assault Rifle Build | -11 -10 -10 ------- Run | Jun Mat Min Slots Evolved . | . . . Power . | . . . Propulsion . | . . . Utility . | . . . Weapon . | . . . Parts Attached 18 | 6 6 6 Power 3 | 1 1 1 Engine 3 | 1 1 1 Core . | . . . Reactor . | . . . Propulsion 6 | 2 2 2 Treads 6 | 2 2 2 Leg . | . . . Wheel . | . . . Hover . | . . . Flight . | . . . Utility 2 | 1 1 . Device . | . . . Storage 2 | 1 1 . Processor . | . . . Hackware . | . . . Protection . | . . . Artifact . | . . . Weapon 7 | 2 2 3 Energy Gun 4 | . 2 2 Energy Cannon . | . . . Ballistic Gun 3 | 2 . 1 Ballistic Cannon . | . . . Launcher . | . . . Special Weapon . | . . . Impact Weapon . | . . . Slashing Weapon . | . . . Piercing Weapon . | . . . Special Melee Weapon . | . . . Unidentified Prototypes . | . . . Parts Lost 5 | . 2 3 Power 1 | . . 1 Propulsion 1 | . 1 . Utility . | . . . Weapon 3 | . 1 2 Highest Loss Streak 2 | . 1 2 To Critical Strikes . | . . . Average Slot Usage (%) 77 | . 78 71 Engine 12 | . 14 1 Treads 27 | . 27 28 Storage 14 | . 14 14 Energy Gun 15 | . 13 26 Ballistic Gun 7 | . 8 . Naked Turns . | . . . Heaviest Build 48 | 12 48 48 Greatest Support 40 | 40 40 40 Greatest Overweight (x) 2 | . 2 1 Average Overweight (x) . | . . 1 Largest Inventory Capacity 20 | 8 20 20 Average Capacity 16 | 7 16 20 Most Carried 13 | 5 11 13 Average Carried 6 | 2 5 12 Final Capacity 20 | 8 20 20 Final Carried 11 | 2 11 11 Class Distribution -------------------- 100% | Mutant Dominant Class ---------------- Mutant | -10/Materials Mutant | -10/Mines Resources | -11 -10 -10 ----------- Run | Jun Mat Min Matter Collected 410 | 260 140 10 Remotely . | . . . Salvage Created 1116 | . 959 157 Parts 64 | . 53 11 Haulers Intercepted 1 | . 1 . Recyclers Shooed 1 | . 1 . Parts Field Recycled . | . . . Retrieved Matter . | . . . Parts Self-Destructed . | . . . Prevented . | . . . Kills | -11 -10 -10 ------- Run | Jun Mat Min Combat Hostiles Destroyed 27 | . 21 6 Guns 26 | . 20 6 Classes Destroyed 8 | . 6 2 Worker 1 | . 1 . Hauler 1 | . 1 . Recycler 2 | . 2 . Watcher 1 | . 1 . Swarmer 6 | . 3 3 Grunt 18 | . 18 . Sentry 2 | . . 2 Assembled 1 | . . 1 Best Kill Streak 3 | . 3 3 Combat Bots Only 3 | . 3 3 Max Kills in Single Turn 1 | . 1 1 Gunslinging . | . . . Exploded . | . . . Melee . | . . . Uniques/NPCs Destroyed . | . . . Combat | -11 -10 -10 -------- Run | Jun Mat Min Damage Taken 1379 | . 802 577 Core 258 | . 138 120 Absorbed by Shields . | . . . Core Remaining (%) 100 | 100 . . Volleys Fired 121 | . 98 23 Largest 2 | . 2 2 Hottest 121 | . 115 121 Shots Fired 176 | . 140 36 Gun 176 | . 140 36 Cannon . | . . . Launcher . | . . . Special . | . . . Kinetic 86 | . 86 . Thermal 90 | . 54 36 Explosive . | . . . Electromagnetic . | . . . Robot Hit Streak 24 | . 24 7 Robot Miss Streak 7 | . 7 3 Penetration Max . | . . . Secondary Targets 2 | . 1 1 Max Gunslinging Chain 1 | . 1 1 Shots Hit Robots 129 | . 106 23 Core Hits 61 | . 52 9 Critical Kills 1 | . 1 . Critical Parts Destroyed 1 | . 1 . Critical Strikes 12 | . 8 4 Burn 10 | . 6 4 Destroy 2 | . 2 . Melee Attacks . | . . . Impact . | . . . Slashing . | . . . Piercing . | . . . Sneak Attacks . | . . . Combat Hostiles . | . . . Follow-up Attacks . | . . . Damage Inflicted 1413 | . 1071 342 Guns 1413 | . 1071 342 Cannons . | . . . Explosions . | . . . Melee . | . . . Ramming . | . . . Kinetic 559 | . 559 . Thermal 854 | . 512 342 Explosive . | . . . Electromagnetic . | . . . Impact . | . . . Slashing . | . . . Piercing . | . . . Highest Corruption . | . . . Average Corruption . | . . . Corruption Purged . | . . . Corruption Blocked . | . . . Overload Shots . | . . . Overflow Damage . | . . . Projectiles . | . . . Explosions . | . . . Melee . | . . . Knockbacks . | . . . Impact . | . . . Kinetic . | . . . Secondary . | . . . Self-Inflicted Damage . | . . . Shots . | . . . Rammed . | . . . Targets Rammed . | . . . Kicked . | . . . Crushed . | . . . Highest Temperature 317 | . 216 317 Average Temperature 78 | . 47 143 Received Heat Transfer 492 | . 393 99 Siege Activations . | . . . Robots Corrupted . | . . . Combat Hostiles . | . . . Parts Fried . | . . . Impact Corruptions . | . . . Robots Melted 1 | . 1 . Combat Hostiles 1 | . 1 . Parts Melted 5 | . 4 1 Heat Transferred 3071 | . 1924 1147 Parts Sabotaged . | . . . Parts Stolen . | . . . Parts Stripped . | . . . Power Chain Reactions . | . . . Missiles Intercepted . | . . . Alert | -11 -10 -10 ------- Run | Jun Mat Min Peak Influence 261 | . 261 198 Initial 88 | . . 88 Average 127 | . 131 143 Maximum Alert Level 1 | . 1 . Low Security (%) 75 | 100 70 100 Level 1 24 | . 29 . Level 2 . | . . . Level 3 . | . . . Level 4 . | . . . Level 5 . | . . . High Security . | . . . Max Security . | . . . Squads Dispatched 6 | . 6 . Investigation 4 | . 4 . Extermination . | . . . Reinforcement 2 | . 2 . Assault . | . . . Garrison . | . . . Intercept . | . . . Searches Triggered . | . . . Construction Impeded . | . . . Haulers Reinforced . | . . . Active Scanning Responses . | . . . Cargo Convoy Interrupts . | . . . Stealth | -11 -10 -10 --------- Run | Jun Mat Min Distress Signals 2 | . 2 . Communications Jammed . | . . . Distress Signals . | . . . Times Spotted 49 | . 41 8 Peak Tracking Total 7 | . 4 7 Tactical Retreats 10 | . 10 . Traps | -11 -10 -10 ------- Run | Jun Mat Min Traps Triggered 2 | . 2 . Indirectly . | . . . Trap Hack Attempts . | . . . Triggered . | . . . Disarmed . | . . . Reprogrammed . | . . . Reused . | . . . Traps Extracted . | . . . Installed . | . . . Triggered . | . . . Machines | -11 -10 -10 ---------- Run | Jun Mat Min Machines Disabled 1 | . . 1 Max in Single Turn 1 | . . 1 Machines Repaired . | . . . Machines Sabotaged . | . . . Overloaded Fab Kills . | . . . Hacking | -11 -10 -10 --------- Run | Jun Mat Min Machines Accessed 3 | . 3 . Terminals 3 | . 3 . Fabricators . | . . . Repair Stations . | . . . Recycling Units . | . . . Scanalyzers . | . . . Garrison Access . | . . . Total Hacks 18 | . 18 . Successful 9 | . 9 . Failed 9 | . 9 . Catastrophic 3 | . 3 . Database Lockouts . | . . . Manual . | . . . Terminals 18 | . 18 . Fabricators . | . . . Repair Stations . | . . . Recycling Units . | . . . Scanalyzers . | . . . Garrison Access . | . . . Terminal Hacks 9 | . 9 . Record 6 | . 6 . Prototype ID Bank 1 | . 1 . Branch Access Points 1 | . 1 . Dispatch Records 1 | . 1 . Fabricator Hacks . | . . . Repair Station Hacks . | . . . Recycling Unit Hacks . | . . . Scanalyzer . | . . . Garrison Access Hacks . | . . . Unauthorized Hacks . | . . . Terminals . | . . . Fabricators . | . . . Repair Stations . | . . . Recycling Units . | . . . Scanalyzers . | . . . Garrison Access . | . . . Data Cores Recovered . | . . . Used . | . . . Hacking Detections 3 | . 3 . Full Trace Events 3 | . 3 . Feedback Events . | . . . Feedback Blocked . | . . . Robot Schematics Acquired . | . . . Robots Built . | . . . Authchips . | . . . Time . | . . . Total Robot Build Rating . | . . . Part Schematics Acquired . | . . . Parts Built . | . . . Authchips . | . . . Time . | . . . Total Part Build Rating . | . . . Parts Repaired . | . . . Time . | . . . Parts Recycled . | . . . Recycled Matter . | . . . Retrieved Matter . | . . . Retrieved Components . | . . . Parts Scanalyzed . | . . . Part Schematics Acquired . | . . . Parts Damaged . | . . . Bothacking | -11 -10 -10 ------------ Run | Jun Mat Min Used RIF Installer . | . . . Robots Hacked . | . . . Non-combat . | . . . Combat . | . . . Robot Hacks Applied . | . . . Relay Couplers Released . | . . . Fabnet Peak Effective % . | . . . Robots Rewired . | . . . Allies Hacked . | . . . Hacks Repelled . | . . . Allies | -11 -10 -10 -------- Run | Jun Mat Min Total Allies . | . . . Largest Group . | . . . Highest-Rated Group . | . . . Highest-Rated Ally . | . . . Total Orders . | . . . Ally Attacks . | . . . Total Damage . | . . . Kills . | . . . Allies Corrupted . | . . . Allies Melted . | . . . Intel | -11 -10 -10 ------- Run | Jun Mat Min Robot Analysis Total . | . . . Derelict Logs Recovered . | . . . Drone Launches . | . . . Drone Recoveries . | . . . Exploration | -11 -10 -10 ------------- Run | Jun Mat Min Turns Passed 2792 | 119 2289 384 Spaces Moved 1074 | 91 854 129 Core 37 | 37 . . Treads 1037 | 54 854 129 Legs . | . . . Wheels . | . . . Hover . | . . . Flight . | . . . Fastest Speed 50 | 50 160 240 Average Speed 206 | 115 211 240 Slowest Speed 320 | 160 320 240 Overloaded Moves . | . . . Propulsion Burnouts . | . . . Robots Hopped . | . . . Cave-ins Triggered . | . . . Exploration Rate (%) 40 | 4 89 28 Regions Visited 2 Branch Regions 1 Pre-discovered Areas . | . . . Known Exits Taken 1 | . 1 . Unknown Exits Taken 1 | 1 . . Scrap Searched . | . . . Spaces Dug . | . . . Terrain Destroyed . | . . . Melee . | . . . Projectile . | . . . AOE . | . . . Terrain Rammed . | . . . Walls Destroyed . | . . . Machines Disabled . | . . . Actions | -11 -10 -10 --------- Run | Jun Mat Min Total 1491 | 106 1218 167 Wait 249 | . 243 6 Move 1072 | 90 853 129 Hop . | . . . Pick Up 26 | 9 14 3 Fast Attach . | . . . Attach 12 | 6 3 3 Detach 1 | . 1 . Swap 6 | . 3 3 Drop 4 | 1 3 . Fire 121 | . 98 23 Melee . | . . . Ram . | . . . Kick . | . . . Crush . | . . . Escape Stasis . | . . . Rewire . | . . . Trap . | . . . Miscellaneous . | . . . Route ------- -11/Junkyard -10/Materials (discovered 4 exits: [*Mat x3] / *Min) -10/Mines History --------- Turn | Location | Event 24 | -11/Junkyard | Discovered new exit (range 16) 120 | -11/Junkyard | Entered Materials 160 | -10/Materials | Identified exit to Mines 311 | -10/Materials | Build established: Mutant 619 | -10/Materials | Discovered new exit (range 7) 988 | -10/Materials | Discovered new exit (range 16) 1410 | -10/Materials | Core integrity fell below 50% 2189 | -10/Materials | Discovered new exit (range 16) 2409 | -10/Materials | Entered Mines 2749 | -10/Mines | Assembled infested the area 2763 | -10/Mines | Core integrity fell below 20% 2793 | -10/Mines | Destroyed by as-21945 with Assembled Rifle Last Messages --------------- 02669_ S-10 Pest destroyed. 02669_ Switching to secondary target: S-10 Pest. 02670_ K-01 Serf collects debris. 02675_ K-01 Serf cleans the Core Extractor. 02675_ Core Extractor disabled. 02675_ Particle Gun destroyed. 02676_ K-01 Serf collects debris. 02680_ S-10 Pest destroyed. 02681_ K-01 Serf collects debris. 02682_ S-10 Pest destroyed. 02684_ K-01 Serf collects debris. 02693_ R-06 Scavenger collects Flight Unit. 02695_ K-01 Serf collects debris. 02696_ R-06 Scavenger collects Lgt. Assault Rifle. 02700_ R-06 Scavenger collects Lgt. Ion Engine. 02703_ R-06 Scavenger collects Flight Unit. 02749_ ALERT: Infestation in the mines, dispatching Demolisher response squad. 02774_ as-04099 suffers critical hit (Burn). 02780_ as-04099 destroyed. Map ----- +----------------------------------------------------+ | | | | | | | | | | | | | | | | | ?????????????????????????????????????????????????? | | ?????????????????????????????????????????????????? | | ?????????????????????????????????????????????????? | | ?????????????????????????????????????????????????# | | ?????????????????????????????????????????????????# | | ?????????????????????????????????????????????????# | | ?????????????????????????????????????????????????# | | ?????????????????????????????????????????######### | | ????????????????????????????????????????## | | ????????????????????????????????????????# | | ????????????????????????????????????????# #### | | ????????????????????????????????????????## #??# | | ????????????????????????????????????????## ##?# | | ???????????????????????????????????????## ### | | ???????????????????????????????????????# ### | | ??????????????????????#####???????????## ## | | ???????????????????????aa #?????????### #? | | ????????????????????????#@#????????## """ ##? | | ????????????????????????# #?????#### """ #?? | | ????????????????????????# #????## """ #?? | | ????????????????????????# #????# #?? | | ????????????????????????# #???## ##### #?? | | ????????????????????????# #??## #???? | | ????????????????????????# #??# #????##### | | ?????????????????????#### #??# #????????? | | ????????????????????## ##?## ##????????? | | ????????????????????# ##?## #?????????? | | ????????????????????# ##?# #?????????? | | ????????????????????# ### ##?????????? | | ###????????????????# ## ##?????????? | | ? ???????????????## ### ### ###???????? | | ??? ???????????????# ##?## #### ##??????? | | ????# ?????????????# #???####?# #??????? | | ???## ????????????# #????????# #??????? | | ???# ############ #???????## ##??????? | | ??# """%% ######### ##???????? | | ? "" % ##????????? | | ? """ ################## ### ##?????????? | | ???? ?????????????????????# #?## ####??????????? | | ???????????????????????????# #??## #?????????????? | | ???????????????????????????# ???# #?????????????? | | ???????????????????????????###??? #?????????????? | +----------------------------------------------------+ Best States ------------- Heat Dissipation 25 Energy Generation 10 Energy Capacity 250 Matter Stores 300 Matter Capacity 300 Sight Range 16 Terrain Scan Density 10 Evasion (%) 50 Recoil Reduction 2 Item Schematics ----------------- None Robot Schematics ------------------ None Fabricated ------------ Nothing Alien Tech Used ----------------- None Achievements -------------- None Challenges ------------ None Game ------ Seed PlatingZhirovRailgun Manual? 0 Play Time 00:23:14 Cumulative 5.7 hours Start 2024.02.28 @ 11:34:06 End 2024.02.28 @ 13:50:47 Sessions 1 Manual Loads 0 Difficulty Rogue Special Mode None Game No. 11 Rogue 11 Adventurer 0 Explorer 0 Win Type - Total 0 Types 0/0/0/0/0/0/0/0/0 Lore% 3 Gallery% 9 Achievement% 10 Wizard Run 0 Options --------- ASCII 0 Keyboard 1 Movement Arrows Keybinds 0 Fullscreen 1 Font 18/SmallcapsGlow Map View 76x50 Tactical HUD 1 Map Filters NONE Filters NONE Steam 1 RUN: 976029e3-168d-42b1-b91a-cd85495d7452